{"text_format":"1","workbook":"xlsx","n_sheets":3,"sheets":["Relació de despeses","Relació d'ingressos ","despeses i ingressos"],"not_rendered":{"charts":0,"images":2,"macros":1,"external_links":0,"defined_names":8,"comments":3,"pivot_tables":0},"unopened":[],"bounds":{"document_bytes":16777216,"sheet_cells":100000,"rows_first":2000,"rows_last":500,"rows_between":2000,"halvings":0,"cell_chars":16384,"cell_head_chars":4096},"cells_cut":0,"cells_raw":0,"read":"whole","date_system":"1900"}

{"sheet":"Relació de despeses","index":0,"n_rows":145,"n_cols":10,"rows_kept":145,"cut":false,"hidden":false,"merged":[[107,0,107,10],[108,0,108,10],[109,0,109,10],[110,0,110,10],[111,0,111,10],[76,9,76,10],[10,0,10,1],[56,0,56,1],[64,0,64,1],[20,9,20,10],[21,9,21,10],[90,0,90,5],[90,9,90,10],[22,9,22,10],[23,0,23,6],[23,9,23,10],[24,0,24,10],[25,9,25,10],[26,9,26,10],[27,9,27,10],[33,9,33,10],[80,9,80,10],[77,0,77,10],[78,9,78,10],[28,9,28,10],[84,9,84,10],[86,9,86,10],[87,9,87,10],[88,0,88,6],[88,9,88,10],[72,9,72,10],[35,9,35,10],[34,9,34,10],[74,9,74,10],[73,9,73,10],[41,9,41,10],[39,9,39,10],[29,0,29,6],[29,9,29,10],[38,9,38,10],[48,9,48,10],[47,9,47,10],[46,9,46,10],[45,9,45,10],[48,0,48,6],[69,9,69,10],[68,9,68,10],[35,0,35,6],[42,0,42,6],[30,0,30,10],[17,9,17,10],[44,9,44,10],[7,9,7,10],[8,9,8,10],[11,0,11,10],[16,9,16,10],[37,9,37,10],[42,9,42,10],[49,0,49,10],[36,0,36,10],[43,0,43,10],[18,0,18,10],[19,9,19,10],[66,9,66,10],[62,0,62,6],[57,0,57,10],[32,9,32,10],[31,9,31,10],[7,3,7,4],[67,9,67,10],[0,0,0,10],[4,0,4,1],[17,0,17,6],[2,2,2,3],[3,2,3,3],[4,2,4,3],[12,9,12,10],[2,0,2,1],[2,4,2,6],[3,4,3,6],[4,4,4,6],[7,2,8,2],[2,7,2,8],[3,7,3,8],[4,7,4,8],[3,0,3,1],[7,1,8,1],[7,0,8,0],[6,0,6,4],[13,9,13,10],[14,9,14,10],[9,0,9,10],[50,9,50,10],[62,9,62,10],[61,9,61,10],[60,9,60,10],[59,9,59,10],[58,9,58,10],[54,9,54,10],[53,9,53,10],[65,0,65,10],[54,0,54,6],[52,9,52,10],[51,9,51,10],[143,0,143,10],[144,0,144,10],[99,0,99,1],[127,0,127,10],[128,0,128,10],[130,0,130,10],[131,0,131,10],[132,0,132,10],[133,0,133,10],[135,0,135,10],[136,0,136,10],[137,0,137,10],[113,0,113,10],[114,0,114,10],[115,0,115,10],[116,0,116,10],[117,0,117,10],[126,0,126,10],[121,0,121,10],[122,0,122,10],[123,0,123,10],[124,0,124,10],[125,0,125,10],[112,0,112,10],[118,0,118,10],[119,0,119,10],[82,9,82,10],[70,9,70,10],[138,0,138,10],[139,0,139,10],[140,0,140,10],[141,0,141,10],[142,0,142,10],[75,9,75,10],[71,0,71,10],[76,0,76,6],[70,0,70,6],[83,0,83,10],[82,0,82,6],[81,9,81,10],[89,0,89,2],[89,3,89,6],[89,9,89,10],[93,0,93,10],[94,0,95,9],[103,0,103,10],[105,0,105,10],[106,0,106,10]]}
["Relació classificada de totes les despeses realitzades per a l'execució de l'activitat  subvencionada"]
[]
["Persona física/jurídica beneficiària:         ",null,null,null,"Import total del projecte:",null,null,null,null,"euros"]
["Codi de subvenció:",null,null,null,"Import de la subvenció atorgada:",null,null,null,null,"euros"]
["Nom del projecte subvencionat:",null,null,null,"Període d'execució del projecte subvencionat:",null,null,null,null,"a"]
[]
["Despeses del projecte/activitat/servei subvencionat (*)"]
["Núm. d'ordre (0)","Número de document: justificants despesa personal (1), factura o rebut/tiquet(2)","Concepte de la factura / \ndocument probatori equivalent","Emissor/a de la factura",null,"Data d'emissió","Import total de la factura","Import imputable (dedicat) al projecte (3)","Import imputable a la subvenció municipal (4)","Observacions"]
[null,null,null,"NIF","Nom","dd/mm/aaaa","euros","euros","euros"]
["DESPESES DIRECTES (Aquelles que s'identifiquen directament amb el projecte)"]
["Submodalitat AC1"]
["AC1.D1.  Honoraris dels formadors/es externs"]
[]
[]
[]
[]
[]
["Subtotal D1",null,null,null,null,null,null,{"$f":"SUM(H13:H17)","v":0},{"$f":"SUM(I13:I17)","v":0}]
["AC1.D2. Cost salarial de les persones participants corresponent a les hores de formació (Max 40% subvenció) "]
[]
[]
[]
[]
["Subtotal D2",null,null,null,null,null,null,{"$f":"SUM(H20:H23)","v":0},{"$f":"SUM(I20:I23)","v":0}]
["AC1.D3.  Lloguer de béns immobles vinculats directament a la realització de la formació"]
[]
[]
[]
[]
["Subtotal D3",null,null,null,null,null,null,{"$f":"SUM(H26:H29)","v":0},{"$f":"SUM(I26:I29)","v":0}]
["AC1.D4. Adquisició de materials i béns consumibles necessaris per la realització de la formació"]
[]
[]
[]
[]
["Subtotal D4",null,null,null,null,null,null,{"$f":"SUM(H32:H35)","v":0},{"$f":"SUM(I32:I35)","v":0}]
["AC1.D5. Transport – missatgeria vinculades directament a la realització de la formació"]
[]
[]
[]
[]
[]
["Subtotal D5",null,null,null,null,null,null,{"$f":"SUM(H38:H42)","v":0},{"$f":"SUM(I38:I42)","v":0}]
["AC1.D6.  Assegurances"]
[]
[]
[]
[]
["Subtotal D6",null,null,null,null,null,null,{"$f":"SUM(H45:H48)","v":0},{"$f":"SUM(I45:I48)","v":0}]
["AC1.D7. Viatges i desplaçaments imputables a les activitats del projecte  (Max 10% subvenció) "]
[]
[]
[]
[]
["Subtotal D7",null,null,null,null,null,null,{"$f":"SUM(H51:H54)","v":0},{"$f":"SUM(I51:I54)","v":0}]
[]
["Submodalitat AC2"]
["AC2.D1. Despeses de matriculació en accions formatives externes"]
[]
[]
[]
[]
["Subtotal D8",null,null,null,null,null,null,{"$f":"SUM(H59:H62)","v":0},{"$f":"SUM(I59:I62)","v":0}]
[]
["Submodalitat AC3"]
["AC3.D1. Despeses d’ajut econòmic –beca- de la persona estudiant en pràctiques"]
[]
[]
[]
[]
["Subtotal D9",null,null,null,null,null,null,{"$f":"SUM(H67:H70)","v":0},{"$f":"SUM(I67:I70)","v":0}]
["AC3.D2. Despeses de seguretat social de l'alumne/a en pràctiques"]
[]
[]
[]
[]
["Subtotal D10",null,null,null,null,null,null,{"$f":"SUM(H73:H76)","v":0},{"$f":"SUM(I73:I76)","v":0}]
["AC3.D3. Despeses del contracte laboral de la formació dual, modalitat contracte de formació i aprenentatge"]
[]
[]
[]
[]
["Subtotal D11",null,null,null,null,null,null,{"$f":"SUM(H79:H82)","v":0},{"$f":"SUM(I79:I82)","v":0}]
["AC3.D4. Despeses de gestió associades a la tramitació del Conveni de Cooperació Educativa o l’Acord Formatiu de Col·laboració"]
[]
[]
[]
[]
["Subtotal D12",null,null,null,null,null,null,{"$f":"SUM(H85:H88)","v":0},{"$f":"SUM(I85:I88)","v":0}]
["TOTAL DESPESES DIRECTES ",null,null,"TOTAL DESPESES DIRECTES",null,null,null,{"$f":"+H18+H36+H43+H49+H55+H63+H71+H77+H83+H89+H24+H30","v":0},{"$f":"+I18+I36+I43+I49+I55+I63+I71+I77+I83+I89+I24+I30","v":0}]
["TOTAL DESPESES",null,null,null,null,null,"TOTAL",{"$f":"+H90","v":0},{"$f":"+I90","v":0}]
[]
[]
["El Sr./Sra. (indicar el nom i cognoms de la persona representant que signa la justificació)  amb DNI/NIE (indicar el núm. DNI) en qualitat de persona física beneficiària o representant legal de la persona jurídica beneficiària (indicar nom i cognoms) amb NIF (indicar núm DNI)."]
["CERTIFICA que les despeses imputades al projecte/activitat/servei subvencionat han estat efectivament efectuades; que custodiarà la documentació suport que ho acredita; que  aquesta documentació es troba a disposició de l'Ajuntament de Barcelona o dels altres ens municipals en els arxius d'aquesta Entitat, durant un període mínim de 4 anys a comptar des de la data de presentació de la present justificació."]
[]
[]
[]
[]
["Població i data: ",null,null,"Signatura i segell (en cas de registre físic)"]
[]
[]
["Notes:"]
["(*) S'han de relacionar totes les despeses del projecte/activitat/servei subvencionat. En el cas que el nombre de files de cada concepte sigui insuficient podeu inserir línies dins del mateix concepte seleccionant una cel·la verda i fent clic sobre el botó d'inserir línia."]
["(0) El número d'ordre ha de ser correlatiu començant per D.1.1, D.1.2, D.1.3, D.2.4, etc."]
["(1) Respecte a les despeses de recursos humans, pot ser subvencionable el cost total salarial mensual, que correspon a la suma de la retribució bruta que apareix a la nòmina del treballador/a més la quota de l'empresa a la Seg. Social. Les despeses de personal es justifiquen amb la nòmina del treballador/a acompanyada dels corresponents TC1 i TC2 de la TGSS i el model 111 de l'IRPF."]
["(2) En el cas que el document justificatiu de la resta de despeses, no sigui una factura, sinó un altre document probatori equivalent, com un rebut o justificant (com per dietes o transport públic), indiqueu-lo en la columna \"observacions\"."]
["(3) En el cas que un justificant inclogui conceptes que no tenen a veure amb el projecte/activitat/servei per al qual s'ha atorgat la subvenció, aquí només s'ha d'indicar la part que realment s'ha dedicat al projecte."]
["(4) En aquesta columna s'ha d'indicar l'import total o parcial de la factura  que s'imputa a la subvenció rebuda de l'Ajuntament de Barcelona. El total imputat, en aquesta columna, ha de ser igual  a l'import de la subvenció rebuda."]
["Modalitat Ac: Formació: Innovació i formació per a la millora de la gestió i l’obertura de noves línies de negoci (per les 3 submodalitats)"]
["1.  La quantia de la subvenció atorgada no superarà el 80% de la despesa total del projecte a subvencionar. "]
["2.  Les sol·licituds poden contenir una proposta de projecte de formació que contingui les tres submodalitats (Ac1, Ac2 i Ac3), o bé tant sols una submodalitat. "]
["3.  En qualsevol cas, l’import màxim de subvenció, tant si la sol•licitud conté una, dos o tres submodalitats, serà de 4.500 euros. L’import màxim permès per la modalitat Ac3 (pràctiques de persones estudiants) és de 3.500 euros."]
["5.  No són imputables en aquesta submodalitat cap despesa indirecta de les detallades en l’apartat 13.3 de les bases reguladores."]
["6. Els salaris percebuts per les persones contractades en el marc del projecte subvencionat no siguin inferiors a 1.088,56 euros bruts mensuals (13.062,72 euros bruts en còmput anual) en el cas de jornades completes, o la part proporcional en el cas de jornades parcials (punt 7 bases reguladores: requisits dels projectes)."]
["7. En cap cas es consideraran despeses subvencionables:"]
["- Els impostos indirectes quan siguin susceptibles de recuperació o compensació, ni els impostos sobre la renda."]
["- Les despeses d'inversió, incloses les adquisicions de béns mobles."]
["- Les despeses realitzades amb data anterior a l'inici del projecte i data posterior a la finalització del projecte."]
["- Altres despeses que s'indiquin a la convocatòria."]
[]
["Submodalitat Ac1: Formació grupal per a persones sòcies, treballadores i voluntàries de l’entitat"]
["1.  Les despeses de cost salarial de les persones participants en la formació grupal es limiten a un màxim d'un 40% de l'import de la subvenció."]
["2.  Les despeses de viatges i desplaçament imputables a les activitats del projecte subvencionable es limiten a un màxim d'un 10% de l'import de la subvenció."]
["3.   Durada mínima de la formació grupal s'estableix en 10 hores per a cada persona participant i el mínim s'estableix en 10 persones. Serà exigible el full de signatura de les persones participants en l’acció grupal."]
["4.   Caldrà justificar  la contribució directa de les accions en la millora del projecte empresarial."]
["5.   Es podran organitzar sessions de formació compartides per diferents entitats d’economia social i solidària, per tal d’optimitzar recursos i temps destinat a la realització de les accions, i afavorir la intercooperació."]
["6. Els materials produïts: de difusió, estudis, informes o materials didàctics utilitzats, etc. en el cas de tractar-se de despesa elegible de la subvenció, hauran de tenir llicència Creative Commons -Compartir Igual- (share alike) i no podrà tenir la condició –Sense Obres "]
["Derivades- (no derivate Works)."]
[]
["Submodalitat Ac2: Despeses de matriculació de les persones de l’entitat en accions formatives externes"]
["1.  La formació a subvencionar ha de tenir una durada mínima de 150 hores i/o un cost mínim de 300 € per a cada participant."]
["2.  Serà exigible el document acreditatiu de l’entitat formadora de la participació de la persona/es participants."]
["3.   Caldrà justificar  la contribució directa de les accions en la millora del projecte empresarial."]
[]
["Submodalitat Ac3: Pràctiques e les persones estudiants universitàries i de formació dual de FP en entitats i empreses de l’ESS"]
["1.  L’import màxim permès per la modalitat Ac3 (pràctiques de persones estudiants) és de 3.500 €."]
["2.  Serà exigible el conveni de Cooperació Educativa amb la universitat respectiva, o bé l’Acord Formatiu de Col·laboració (en el cas de beca) o el Contracte de formació i aprenentatge amb el Centre de Formació Professional corresponent."]
["3.  Els/les alumnes beneficiaris/àries han de ser persones residents a la ciutat o matriculats/des en un universitats o centres de formació de la ciutat."]
["4.  El programa de pràctiques dels alumnes ha de ser d’una durada mínima de 400 hores. "]
["5.  Només pot presentar-se una sol·licitud per un lloc de pràctiques per entitat sol·licitant. "]
["6.  Caldrà donar d’alta a l’alumne/a en la seguretat social com a alumne/a en pràctiques (tant per pràctiques curriculars com extracurriculars universitàries com per als alumnes de FP en formació dual – modalitat beca-)."]
["7.  El cost brut hora de la remuneració de l’alumne/a en pràctiques universitàries no podrá ser inferior a de 6€/hora. "]
["8. Caldrà remunerar l’alumne/a segons la modalitat d’FP dual escollida com a mínim d’acord amb la normativa específica que estableix el Departament d’Educació de la Generalitat de Catalunya."]
["9. La formalització de les pràctiques, el desenvolupament del contingut, avaluació i seguiment s’ajustarà a la normativa vigent del Departament d’Educació de la Generalitat de Catalunya i d’altres normes que li siguin d’aplicació."]

{"sheet":"Relació d'ingressos ","index":1,"n_rows":80,"n_cols":10,"rows_kept":80,"cut":false,"hidden":false,"merged":[[12,6,12,9],[49,6,49,9],[20,6,20,9],[19,6,19,9],[18,6,18,9],[17,6,17,9],[35,6,35,9],[45,6,45,9],[44,6,44,9],[43,6,43,9],[15,6,15,9],[21,6,21,9],[30,6,30,9],[29,6,29,9],[39,6,39,9],[38,6,38,9],[27,0,27,3],[51,6,51,9],[50,6,50,9],[21,0,21,3],[46,0,46,9],[48,6,48,9],[47,6,47,9],[27,6,27,9],[26,6,26,9],[25,6,25,9],[24,6,24,9],[23,6,23,9],[37,6,37,9],[36,6,36,9],[42,6,42,9],[41,6,41,9],[31,6,31,9],[33,6,33,9],[32,6,32,9],[45,0,45,3],[28,0,28,9],[34,0,34,9],[40,0,40,9],[39,0,39,3],[33,0,33,3],[0,0,0,9],[9,0,9,9],[16,0,16,9],[22,0,22,9],[7,6,8,9],[10,6,10,9],[11,6,11,9],[7,0,8,0],[14,6,14,9],[3,2,3,3],[2,2,2,3],[6,0,6,3],[4,2,4,3],[7,2,7,3],[7,1,8,1],[15,0,15,3],[51,0,51,3],[54,6,54,9],[53,6,53,9],[67,0,67,3],[66,0,66,3],[52,0,52,9],[58,0,58,9],[57,6,57,9],[59,6,59,9],[57,0,57,3],[60,6,60,9],[67,6,67,9],[61,6,61,9],[62,6,62,9],[63,6,63,9],[64,6,64,9],[75,1,75,2],[69,0,69,9],[70,0,71,9],[66,6,66,9],[65,6,65,9]]}
["Detall de tots els ingressos obtinguts i aportacions del propi beneficiari per a l'execució de l'activitat subvencionada"]
[]
[null,"Nom de la persona física/jurídica beneficiària:        ",{"$f":"'Relació de despeses'!C3","v":0},null,"Import total del projecte :",null,null,{"$f":"IF(+'Relació de despeses'!H3=\"\",\"\",+'Relació de despeses'!H3)","v":""},"euros"]
[null,"Codi de subvenció",{"$f":"'Relació de despeses'!C4","v":0},null,"Import de la subvenció atorgada:",null,null,{"$f":"IF(+'Relació de despeses'!H4=\"\",\"\",+'Relació de despeses'!H4)","v":""},"euros"]
[null,"Nom del projecte subvencionat",{"$f":"'Relació de despeses'!C5","v":0},null,"Període d'execució del projecte subvencionat:",null,null,{"$f":"IF(+'Relació de despeses'!H5=\"\",\"\",+'Relació de despeses'!H5)","v":""},"a",{"$f":"IF(+'Relació de despeses'!K5=\"\",\"\",+'Relació de despeses'!K5)","v":""}]
[]
["Ingressos del projecte/activitat/servei subvencionat"]
["Núm. d'ordre (0)","Concepte de l'ingrés","Emissor de l'ingrés",null,"Data de cobrament\n(dd/mm/aaaa)","Import","Observacions"]
[null,null,"NIF","Nom","(1)","euros"]
["A. Subvenció municipal "]
[]
[]
[]
[]
[]
[null,null,null,null,"Subtotal A",{"$f":"SUM(F11:F15)","v":0}]
["B. Subvencions d'altres administracions"]
[]
[]
[]
[]
[null,null,null,null,"Subtotal B",{"$f":"SUM(F18:F21)","v":0}]
["C. Subvencions d'ens privats"]
[]
[]
[]
[]
[null,null,null,null,"Subtotal C",{"$f":"SUM(F24:F27)","v":0}]
["D. Recursos propis de l'entitat aplicats al projecte"]
[]
[]
[]
[]
[null,null,null,null,"Subtotal D",{"$f":"SUM(F30:F33)","v":0}]
["E. Taquillatge"]
[]
[]
[]
[]
[null,null,null,null,"Subtotal E",{"$f":"SUM(F36:F39)","v":0}]
["F. Quotes d'inscripció"]
[]
[]
[]
[]
[null,null,null,null,"Subtotal F",{"$f":"SUM(F42:F45)","v":0}]
["G. Venda de Productes"]
[{"$f":"IF(B48<>\"\",MAX($A$10:A47)+1,\"\")","v":""}]
[{"$f":"IF(B49<>\"\",MAX($A$10:A48)+1,\"\")","v":""}]
[{"$f":"IF(B50<>\"\",MAX($A$10:A49)+1,\"\")","v":""}]
[{"$f":"IF(B51<>\"\",MAX($A$10:A50)+1,\"\")","v":""}]
[null,null,null,null,"Subtotal G",{"$f":"SUM(F48:F51)","v":0}]
["H. Publicitat i/o Esponsorització"]
[]
[]
[]
[]
[null,null,null,null,"Subtotal H",{"$f":"SUM(F54:F57)","v":0}]
["I. Altres ingressos"]
[]
[]
[]
[]
[]
[]
[]
[null,null,null,null,"Subtotal I",{"$f":"SUM(F60:F66)","v":0}]
["Total INGRESSOS",null,null,null,"TOTAL",{"$f":"+F16+F22+F28+F34+F40+F46+F52+F58+F67","v":0}]
[]
["El Sr./Sra. (indicar el nom i cognoms de la persona representant que signa la justificació)  amb DNI/NIE (indicar el núm. DNI) en qualitat de persona física beneficiària o representant legal de la persona jurídica beneficiària (indicar nom i cognoms) amb NIF (indicar núm DNI)."]
["CERTIFICA que els ingressos imputats al projecte/activitat/servei subvencionat han estat efectivament ingressats; que custodiarà la documentació suport que ho acredita; que  aquesta documentació es troba a disposició de l'Ajuntament de Barcelona o dels altres ens municipals en els arxius d'aquesta Entitat, durant un període mínim de 4 anys a comptar des de la data de presentació de la present justificació."]
[]
[]
[]
[]
[null,"Població i data: ",null,null,"Signatura i segell (en cas de registre físic)"]
[]
[null,"Nota:"]
[null,"(0) El número d'ordre ha de ser correlatiu començant pel número 1"]
[null,"(1) En cas que l'ingrés estigui pendent cobrament, indicar \"P. Cobrament\" "]

{"sheet":"despeses i ingressos","index":2,"n_rows":65,"n_cols":11,"rows_kept":65,"cut":false,"hidden":false,"merged":[[43,0,43,10],[44,0,44,10],[41,0,41,10],[42,0,42,10],[31,0,31,10],[32,0,33,9],[38,0,38,10],[39,0,39,10],[40,0,40,10],[35,1,35,2],[10,8,11,8],[10,9,11,9],[23,6,23,7],[24,6,24,7],[24,8,24,9],[4,0,4,1],[4,2,4,3],[4,5,4,6],[5,0,5,1],[5,2,5,3],[5,5,5,6],[6,0,6,1],[6,2,6,3],[9,0,9,1],[9,6,9,7],[10,0,11,1],[10,2,11,2],[10,3,11,3],[10,6,11,7]]}
[]
[]
["Estat de les despeses realitzades i dels ingressos obtinguts per a l'execució de l'activitat subvencionada (*)"]
[]
["Nom de la persona física/jurídica beneficiària:         ",null,{"$f":"'Relació d''ingressos '!C3:D3","v":0},null,null,"Import total del projecte:",null,{"$f":"'Relació d''ingressos '!H3","v":""},"euros"]
["Codi de subvenció:",null,{"$f":"'Relació d''ingressos '!C4:D4","v":0},null,null,"Import de la subvenció atorgada:",null,{"$f":"'Relació d''ingressos '!H4","v":""},"euros"]
["Nom del projecte subvencionat:",null,{"$f":"'Relació d''ingressos '!C5:D5","v":0},null,null,"Període d'execució del projecte subvencionat:",null,null,{"$f":"'Relació d''ingressos '!H5","v":""},"a",{"$f":"'Relació d''ingressos '!J5","v":""}]
[]
["SUBVENCIONS PER A LA PROMOCIÓ I REFORÇ DE L'ECONOMIA SOCIAL I SOLIDÀRIA 2020"]
["DESPESES PREVISTES",null,"import en euros",null,null,null,"INGRESSOS PREVISTOS",null,"import en euros"]
["Despeses directes \n(aquelles que s'identifiquen directament amb el projecte)",null,"Previsió inicial o reformulada ja aprovada (1)","Despeses realitzades (2)","Diferència\n",null,"Ingressos previstos",null,"Previsió inicial (1)","Ingressos obtinguts (3)"]
[null,null,null,null,"(2-1)"]
["Ac","D1.  Honoraris dels formadors/es externs",null,{"$f":"'Relació de despeses'!H18","v":0},{"$f":"+C13-D13","v":0},{"$f":"+IF(D13<0,\"No s'admeten valors negatius\",\"\")","v":""},"A.","Subvenció municipal (import sol·licitat a la instància/atorgat)",null,{"$f":"'Relació d''ingressos '!F16","v":0},{"$f":"+IF(J13<0,\"No s'admeten valors negatius\",IF(J13<>'Relació d''ingressos '!F16,\"No coincideix amb import pestanya anterior\",\"\"))","v":""}]
[null,"D2. Cost salarial de les persones participants corresponent a les hores de formació (Max 40% subvenció) ",null,{"$f":"'Relació de despeses'!H24","v":0},{"$f":"+C14-D14","v":0},{"$f":"+IF(D14<0,\"No s'admeten valors negatius\",\"\")","v":""},"B.","Subvencions d'altres administracions",null,{"$f":"'Relació d''ingressos '!F22","v":0},{"$f":"+IF(J14<0,\"No s'admeten valors negatius\",\"\")","v":""}]
[null,"D3.  Lloguer de béns immobles vinculats directament a la realització de la formació",null,{"$f":"'Relació de despeses'!H30","v":0},0,"","C.","Subvencions d'ens privats",null,{"$f":"'Relació d''ingressos '!F28","v":0},""]
[null,"D4. Adquisició de materials i béns consumibles necessaris per la realització de la formació",null,{"$f":"'Relació de despeses'!H36","v":0},0,"","D.","Recursos propis de l'entitat aplicats al projecte",null,{"$f":"'Relació d''ingressos '!F34","v":0},""]
[null,"D5. Transport – missatgeria vinculades directament a la realització de la formació",null,{"$f":"'Relació de despeses'!H43","v":0},0,"","E.","Taquillatge",null,{"$f":"'Relació d''ingressos '!F40","v":0},""]
[null,"D6.  Assegurances",null,{"$f":"'Relació de despeses'!H49","v":0},0,"","F.","Quotes d'inscripció",null,{"$f":"'Relació d''ingressos '!F46","v":0},""]
[null,"D7.  Viatges i desplaçaments imputables a les activitats del projecte  (Max 10% subvenció) ",null,{"$f":"'Relació de despeses'!H55","v":0},0,"","G.","Venda de Productes",null,{"$f":"'Relació d''ingressos '!F52","v":0},""]
[null,"D8.  Despeses de matriculació en accions formatives externes",null,{"$f":"'Relació de despeses'!H63","v":0},0,"","H","Publicitat i/o Esponsorització",null,{"$f":"'Relació d''ingressos '!F58","v":0},""]
[null,"D9.  Despeses d’ajut econòmic –beca- de la persona estudiant en pràctiques",null,{"$f":"'Relació de despeses'!H71","v":0},0,{"$f":"+IF(D21<0,\"No s'admeten valors negatius\",\"\")","v":""},"I.","Altres ingressos",null,{"$f":"'Relació d''ingressos '!F67","v":0},""]
[null,"D10.  Despeses de seguretat social de l'alumne/a en pràctiques",null,{"$f":"'Relació de despeses'!H77","v":0},0,{"$f":"+IF(D22<0,\"No s'admeten valors negatius\",\"\")","v":""},null,"Total Ingressos",{"$f":"SUM(I13:I21)","v":0},{"$f":"SUM(J13:J21)","v":0}]
[null,"D11. Despeses del contracte laboral de la formació dual, modalitat contracte de formació i aprenentatge",null,{"$f":"'Relació de despeses'!H83","v":0},0,""]
[null,"D12  Despeses de gestió associades a la tramitació del Conveni de Cooperació Educativa o l’Acord Formatiu de Col·laboració",null,{"$f":"'Relació de despeses'!H89","v":0},0,"","Ingressos menys despeses ",null,{"$f":"I22-C26","v":0},{"$f":"J22-D26","v":0}]
[null,"Total Despeses Directes   ",{"$f":"SUM(C13:C24)","v":0},{"$f":"SUM(D13:D24)","v":0},{"$f":"SUM(E13:E24)","v":0},null,"Desviació de Despeses (4)",null,"Desviació d'ingressos (4)"]
[null,"Total Despeses ",{"$f":"+C25","v":0},{"$f":"+D25","v":0},{"$f":"+E25","v":0},null,"Import"," % ","Import","%"]
[null,null,null,null,"import en euros",null,{"$f":"D26-C26","v":0},{"$f":"D26/C26","v":{"$error":"#DIV/0!"}},{"$f":"J22-I22","v":0},{"$f":"J22/I22","v":{"$error":"#DIV/0!"}}]
[null,null,null,null,null,null,null,null,"% subvencionat inicialment o després de reformulació (5)",{"$f":"I13/I22","v":{"$error":"#DIV/0!"}}]
[null,null,null,null,null,null,null,null,"% subvencionat després de justificació (6)",{"$f":"J13/J22","v":{"$error":"#DIV/0!"}}]
[]
[]
["El Sr./Sra. (indicar el nom i cognoms de la persona representant que signa la justificació)  amb DNI/NIE (indicar el núm. DNI) en qualitat de persona física beneficiària o representant legal de la persona jurídica beneficiària (indicar nom i cognoms) amb NIF (indicar núm DNI)."]
["CERTIFICA que els ingressos imputats al projecte/activitat/servei subvencionat han estat efectivament ingressats; que custodiarà la documentació suport que ho acredita; que  aquesta documentació es troba a disposició de l'Ajuntament de Barcelona o dels altres ens municipals en els arxius d'aquesta Entitat, durant un període mínim de 4 anys a comptar des de la data de presentació de la present justificació."]
[]
[]
[null,"Població i data: ",null,null,"Signatura i segell (en cas de registre físic)"]
[]
["Notes:"]
["(*) Les columnes ombrejades en color  s'aniran emplenant automàticament a partir de les dades introduïdes en els documents de despeses -detall i ingressos-detall. Per tant, no imprimiu aquest full fins haver emplenat els altres."]
["(1) Previsió inicial o reformulació ja aprovada= S'han d'indicar la previsió inicial de despeses i d'ingressos segons allò que es va indicar al projecte original en el \"pla de viabilitat econòmica del projecte - pressupost general\" . En cas que ja s'hagi aprovat una reformulació, s'han d'indicar les quantitats reformulades. "]
["(2) Despeses reals = Cost real total del projecte subvencionat. Automàticament s'introduiran els subtotals de les despeses relacionades al full Despeses-detall."]
["(3) Ingresos reals = Total d'ingressos obtinguts per a la realització del projecte subvencionat. Automàticament s'introduiran els subtotals dels ingressos relacionats al full Ingressos-detall"]
["(4) Desviació: En el cas de les despeses, la desviació és la diferència entre despeses reals i la previsió inicial de despeses; i en el cas d'ingressos, la diferència entre els ingressos reals i la previsió inicial d'ingressos. "]
["(5) % finançament municipal = percentatge que suposen les subvencions municipals (A) respecte del  total d'ingressos del projecte subvencionat."]
["(6) El % de la desviació final de despeses es calcula dividint l'import resultant de despeses reals - despeses previstes, entre el total de despeses previstes i de la mateixa manera els ingressos. En cas d'existir una desviació sempre s'ha de motivar."]
[]
[]
[]
[]
[]
[]
[]
[]
[]
[]
[]
[]
[]
[]
[]
[]
[]
[]
[]
[null,null,0]